fUST/lending_fUST_20241121
["ID","MTS","AMOUNT","RATE_DAILY","PERIOD"]
[342844984,1732177839144,-239.341765,0.00022739,7]
[342844985,1732177839154,-422.224064,0.00022739,7]
[342844986,1732177839164,-422.224064,0.00022739,7]
[342844987,1732177839173,-500.0,0.00022739,2]
[342844989,1732177839182,-425.0725,0.00022739,2]
[342844990,1732177839192,-565.11,0.00022739,2]
[342844991,1732177839202,-864.69,0.00022739,2]
[342844992,1732177839211,-500.0,0.00022739,2]
[342844993,1732177839288,-334.99840451,0.00022739,2]
[342844994,1732177839298,-668.1,0.00022739,2]
[342844995,1732177839307,-908.069272,0.00022739,7]
[342844996,1732177839317,-446.28,0.00022739,2]
[342844997,1732177839330,-908.069272,0.00022739,7]
[342844998,1732177839339,-500.0,0.00022739,2]
[342844999,1732177839349,-1000.0,0.00022739,2]
[342845000,1732177839359,-894.028291,0.00022739,2]
[342845001,1732177839368,-500.0,0.00022739,2]
[342845002,1732177839378,-223.783358,0.00022739,7]
[342845003,1732177839387,-500.0,0.00022739,2]
[342845005,1732177839399,-223.783358,0.00022739,7]
[342845006,1732177839409,-200.0,0.00022739,2]
[342845007,1732177839419,-500.0,0.00022739,2]
[342845008,1732177839428,-500.0,0.00022739,2]
[342845009,1732177839438,-647.279454,0.00022739,7]
[342845010,1732177839447,-509.40179086,0.00022739,2]
[342845011,1732177839456,-647.279454,0.00022739,7]
[342845012,1732177839466,-500.0,0.00022739,2]
[342845013,1732177839475,-649.83678,0.00022739,7]
[342845014,1732177839485,-500.0,0.00022739,2]
[342845015,1732177839495,-584.26788245,0.00022739,2]
[342845016,1732177839504,-500.0,0.00022739,2]
[342845017,1732177839513,-500.0,0.00022739,2]
[342845018,1732177839522,-500.0,0.00022739,2]
[342845019,1732177839532,-500.0,0.00022739,2]
[342845020,1732177839541,-1483.52,0.00022739,2]
[342845021,1732177839550,-500.0,0.00022739,2]
[342845022,1732177839560,-166.90921,0.00022739,7]
[342845023,1732177839570,-276.266686,0.00022739,7]
[342845024,1732177839579,-276.266686,0.00022739,7]
[342845025,1732177839589,-276.956704,0.00022739,7]
[342845026,1732177839599,-166.90921,0.00022739,7]
[342845027,1732177839608,-276.956704,0.00022739,7]
[342845028,1732177839617,-443.312623,0.00022739,7]
[342845029,1732177839627,-443.312623,0.00022739,7]
[342845030,1732177839637,-500.0,0.00022739,2]
[342845031,1732177839647,-384.797399,0.00022739,7]
[342845032,1732177839657,-384.797399,0.00022739,7]
[342845033,1732177839667,-500.0,0.00022739,2]
[342845034,1732177839677,-500.0,0.00022739,2]
[342845035,1732177839686,-588.93,0.00022739,2]
[342845036,1732177839697,-534.68,0.00022739,2]
[342845037,1732177839706,-500.0,0.00022739,2]
[342845038,1732177839716,-500.0,0.00022739,2]
[342845039,1732177839726,-771.04,0.00022739,2]
[342845040,1732177839736,-500.0,0.00022739,2]
[342845041,1732177839745,-623.4,0.00022739,2]
[342845042,1732177839755,-1412.36,0.00022739,2]
[342845043,1732177839765,-272.81,0.00022739,2]
[342845044,1732177839774,-500.0,0.00022739,2]
[342845045,1732177839784,-500.0,0.00022739,2]
[342845046,1732177839793,-500.0,0.00022739,2]
[342845047,1732177839803,-500.0,0.00022739,2]
[342845048,1732177839812,-179.04656,0.00022739,7]
[342845049,1732177839821,-500.0,0.00022739,2]
[342845050,1732177839830,-500.0,0.00022739,2]
[342845051,1732177839839,-500.0,0.00022739,2]
[342845052,1732177839849,-307.598826,0.00022739,7]
[342845053,1732177839858,-179.04656,0.00022739,7]
[342845054,1732177839868,-500.0,0.00022739,2]
[342845055,1732177839877,-500.0,0.00022739,2]
[342845056,1732177839886,-943.767056,0.00022739,7]
[342845057,1732177839896,-307.598826,0.00022739,7]
[342845058,1732177839905,-168.198567,0.00022739,7]
[342845059,1732177839914,-943.767056,0.00022739,7]
[342845060,1732177839924,-168.198567,0.00022739,7]
[342845061,1732177839933,-151.0,0.00022739,7]
[342845062,1732177839943,-500.0,0.00022739,2]
[342845063,1732177839952,-500.0,0.00022739,2]
[342845064,1732177839961,-500.0,0.00022739,2]
[342845065,1732177839970,-500.0,0.00022739,2]
[342845066,1732177839981,-500.0,0.00022739,2]
[342845067,1732177839990,-500.0,0.00022739,2]
[342845068,1732177840000,-500.0,0.00022739,2]
[342845069,1732177840009,-3887.893089,0.00022739,7]
[342845070,1732177840019,-3887.893089,0.00022739,7]
[342845071,1732177840028,-500.0,0.00022739,2]
[342845072,1732177840037,-484.35285717,0.00022739,2]
[342845073,1732177840145,-5047.07714283,0.00022739,2]
[342845074,1732177840155,-230.937735,0.00022739,7]
[342845075,1732177840164,-500.0,0.00022739,2]
[342845076,1732177840173,-500.0,0.00022739,2]
[342845077,1732177840183,-500.0,0.00022739,2]
[342845078,1732177840193,-160.38,0.00022739,2]
[342845079,1732177840202,-211.329367,0.00022739,7]
[342845080,1732177840212,-230.937735,0.00022739,7]
[342845081,1732177840222,-2751.1,0.00022739,2]
[342845082,1732177840232,-500.0,0.00022739,2]
[342845083,1732177840241,-2170.08,0.00022739,2]
[342845084,1732177840250,-2567.817155,0.00022739,7]
[342845085,1732177840259,-2567.817155,0.00022739,7]
[342845086,1732177840268,-210.136401,0.00022739,7]
[342845087,1732177840278,-1231.33428728,0.00022739,2]
[342845131,1732177841025,-1592.21873538,0.0001761,2]
[342845133,1732177841035,-500.0,0.00021415,2]
[342845135,1732177841045,-500.0,0.00021415,2]
[342845137,1732177841054,-500.0,0.00021415,2]
[342845139,1732177841063,-500.0,0.00021415,2]
[342845141,1732177841073,-500.0,0.00021415,2]
[342845143,1732177841082,-500.0,0.00021415,2]
[342845145,1732177841092,-434.03381678,0.00021415,2]
[342845147,1732177841101,-171.38255227,0.00021415,2]
[342845149,1732177841110,-636.50188339,0.00021415,2]
[342845151,1732177841120,-500.0,0.00021415,2]
[342845153,1732177841129,-500.0,0.00021415,2]
[342845155,1732177841138,-500.0,0.00021415,2]
[342845157,1732177841148,-500.0,0.00021415,2]
[342845159,1732177841158,-500.0,0.00021415,2]
[342845161,1732177841167,-500.0,0.00021415,2]
[342845163,1732177841176,-500.0,0.00021415,2]
[342845165,1732177841186,-500.0,0.00021415,2]
[342845167,1732177841196,-500.0,0.00021415,2]
[342845169,1732177841205,-500.0,0.00021415,2]
[342845171,1732177841215,-500.0,0.00021415,2]
[342845173,1732177841224,-500.0,0.00021415,2]
[342845175,1732177841236,-500.0,0.00021415,2]
[342845177,1732177841246,-500.0,0.00021415,2]
[342845179,1732177841256,-500.0,0.00021415,2]
[342845181,1732177841266,-500.0,0.00021415,2]
[342845183,1732177841277,-500.0,0.00021415,2]
[342845185,1732177841287,-640.6137092,0.00021415,2]
[342845187,1732177841297,-175.66064787,0.00021415,2]
[342845189,1732177841307,-419.31825232,0.00021415,2]
[342845191,1732177841319,-500.0,0.00021415,2]
[342845192,1732177841332,-500.0,0.00021415,2]
[342845194,1732177841341,-500.0,0.00021415,2]
[342845195,1732177841351,-500.0,0.00021415,2]
[342845196,1732177841361,-500.0,0.00021415,2]
[342845197,1732177841372,-500.0,0.00021415,2]
[342845199,1732177841381,-500.0,0.00021415,2]
[342845200,1732177841391,-500.0,0.00021415,2]
[342845202,1732177841401,-500.0,0.00021415,2]
[342845203,1732177841410,-500.0,0.00021415,2]
[342845204,1732177841420,-335.94645978,0.00021415,2]
[342845205,1732177841430,-500.0,0.00021415,2]
[342845206,1732177841440,-500.0,0.00021415,2]
[342845207,1732177841450,-500.0,0.00021415,2]
[342845208,1732177841460,-500.0,0.00021415,2]
[342845209,1732177841470,-500.0,0.00021415,2]
[342845210,1732177841482,-500.0,0.00021415,2]
[342845211,1732177841492,-382.14165063,0.00021415,2]
[342845212,1732177841502,-500.0,0.00021415,2]
[342845213,1732177841511,-500.0,0.00021415,2]
[342845214,1732177841520,-500.0,0.00021415,2]
[342845215,1732177841529,-500.0,0.00021415,2]
[342845216,1732177841539,-500.0,0.00021415,2]
[342845217,1732177841548,-500.0,0.00021415,2]
[342845218,1732177841557,-500.0,0.00021415,2]
[342845219,1732177841567,-500.0,0.00021415,2]
[342845220,1732177841576,-500.0,0.00021415,2]
[342845221,1732177841586,-500.0,0.00021415,2]
[342845222,1732177841595,-463.82736975,0.00021415,2]
[342845223,1732177841604,-500.0,0.00021415,2]
[342845224,1732177841614,-551.123619,0.00022,7]
[342845225,1732177841624,-551.123619,0.0002215,7]
[342845226,1732177841634,-500.0,0.00022191,2]
[342845227,1732177841643,-500.0,0.00022465,2]
[342845228,1732177841653,-187.38571272,0.00022739,2]
[342845229,1732177841662,-647.02,0.00022739,2]
[342845230,1732177841671,-210.136401,0.00022739,7]
[342845231,1732177841681,-500.0,0.00022739,2]
[342845232,1732177841690,-500.0,0.00022739,2]
[342845233,1732177841699,-731.03,0.00022739,2]
[342845234,1732177841709,-11336.17,0.00022739,2]
[342845235,1732177841718,-779.92,0.00022739,2]
[342845236,1732177841729,-500.0,0.00022739,2]
[342845237,1732177841738,-151.0,0.00022739,7]
[342845238,1732177841747,-177.90556019,0.00022739,2]
[342845239,1732177841756,-381.12881863,0.00022739,2]
[342845248,1732177842848,-551.123619,0.00022191,7]
[342845249,1732177842858,-337.088561,0.00022465,7]
[342845286,1732178546351,1540.0,0.00026,60]
[342845320,1732178926594,197.27194408,0.000219,30]
[342845353,1732179034127,-205.853928,0.00013973,2]
[342845355,1732179034137,-168.291276,0.00019711,2]
[342845356,1732179034147,-267.377303,0.00020133,2]
[342845358,1732179034157,-300.0,0.00020332,2]
[342845360,1732179034166,-300.0,0.00020332,2]
[342845362,1732179034176,-898.94614821,0.00020333,2]
[342845364,1732179034187,-9678.93644995,0.00020333,2]
[342845371,1732179038173,-439.96790692,0.00020333,2]
[342845416,1732179039813,-13882.14949492,0.00020333,2]
[342845417,1732179039822,-205.853928,0.00020447,2]
[342845418,1732179039832,-355.9063819,0.00021003,2]
[342845419,1732179039842,-3014.0358048,0.00021217,2]
[342845420,1732179039852,-212.5677706,0.00021315,2]
[342845421,1732179039862,-500.0,0.00021316,2]
[342845422,1732179039871,-500.0,0.00021316,2]
[342845423,1732179039880,-315.1051622,0.00021316,2]
[342845424,1732179039890,-237.84596769,0.00021316,2]
[342845425,1732179039899,-381.55931297,0.00021316,2]
[342845426,1732179039909,-463.96229421,0.00021316,2]
[342845427,1732179039918,-500.0,0.00021316,2]
[342845428,1732179039928,-384.86970775,0.00021316,2]
[342845429,1732179039938,-1061.47915692,0.00021317,2]
[342845430,1732179039947,-250000.0,0.00021317,2]
[342845431,1732179039956,-8568.98358501,0.00021505,2]
[342845432,1732179039970,-8568.98358501,0.00021908,2]
[342845433,1732179039979,-500.0,0.00021917,2]
[342845434,1732179039989,-200.0,0.00021917,2]
[342845435,1732179039999,-500.0,0.00021917,2]
[342845436,1732179040009,-500.0,0.00021917,2]
[342845437,1732179040018,-500.0,0.00021917,2]
[342845438,1732179040028,-213.56,0.00021917,2]
[342845439,1732179040038,-556.24,0.00021917,2]
[342845440,1732179040048,-500.0,0.00021917,2]
[342845441,1732179040058,-500.0,0.00021917,2]
[342845442,1732179040067,-720.57,0.00021917,2]
[342845443,1732179040077,-556.75,0.00021917,2]
[342845444,1732179040087,-500.0,0.00021917,2]
[342845445,1732179040096,-500.0,0.00021917,2]
[342845446,1732179040106,-500.0,0.00021917,2]
[342845447,1732179040115,-301.98830851,0.00021917,2]
[342845448,1732179040125,-500.0,0.00021917,2]
[342845449,1732179040134,-500.0,0.00021917,2]
[342845450,1732179040143,-500.0,0.00021917,2]
[342845451,1732179040153,-500.0,0.00021917,2]
[342845452,1732179040162,-161.18349741,0.00021917,2]
[342845453,1732179040171,-551.35324393,0.00021917,2]
[342845454,1732179040180,-500.0,0.00021917,2]
[342845455,1732179040189,-1236.27,0.00021917,2]
[342845456,1732179040199,-500.0,0.00021917,2]
[342845457,1732179040208,-424.12,0.00021917,2]
[342845458,1732179040219,-500.0,0.00021917,2]
[342845459,1732179040229,-500.0,0.00021917,2]
[342845460,1732179040238,-539.19,0.00021917,2]
[342845461,1732179040247,-344.28,0.00021917,2]
[342845462,1732179040256,-500.0,0.00021917,2]
[342845463,1732179040265,-500.0,0.00021917,2]
[342845464,1732179040275,-500.0,0.00021917,2]
[342845465,1732179040284,-500.0,0.00021917,2]
[342845466,1732179040294,-500.0,0.00021917,2]
[342845467,1732179040303,-575.44,0.00021917,2]
[342845468,1732179040312,-500.0,0.00021917,2]
[342845469,1732179040321,-642.54,0.00021917,2]
[342845470,1732179040330,-519.5,0.00021917,2]
[342845471,1732179040339,-500.0,0.00021917,2]
[342845472,1732179040348,-500.0,0.00021917,2]
[342845473,1732179040358,-317.34860946,0.00021917,2]
[342845474,1732179040367,-500.0,0.00021917,2]
[342845475,1732179040376,-500.0,0.00021917,2]
[342845476,1732179040385,-500.0,0.00021917,2]
[342845477,1732179040395,-500.0,0.00021917,2]
[342845478,1732179040404,-1808.4,0.00021917,2]
[342845479,1732179040413,-500.0,0.00021917,2]
[342845480,1732179040424,-500.0,0.00021917,2]
[342845481,1732179040434,-609.19,0.00021917,2]
[342845482,1732179040444,-500.0,0.00021917,2]
[342845483,1732179040453,-385.19192322,0.00021917,2]
[342845484,1732179040463,-500.0,0.00021917,2]
[342845485,1732179040472,-2292.59,0.00021917,2]
[342845486,1732179040481,-649.93,0.00021917,2]
[342845487,1732179040490,-500.0,0.00021917,2]
[342845488,1732179040499,-1705.53,0.00021917,2]
[342845489,1732179040508,-500.0,0.00021917,2]
[342845490,1732179040518,-9446.81,0.00021917,2]
[342845491,1732179040527,-519.88,0.00021917,2]
[342845492,1732179040536,-500.0,0.00021917,2]
[342845493,1732179040545,-500.0,0.00021917,2]
[342845494,1732179040554,-500.0,0.00021917,2]
[342845495,1732179040563,-4609.53,0.00021917,2]
[342845496,1732179040573,-500.0,0.00021917,2]
[342845497,1732179040582,-500.0,0.00021917,2]
[342845498,1732179040591,-924.81,0.00021917,2]
[342845499,1732179040600,-1182.26,0.00021917,2]
[342845500,1732179040610,-2085.1,0.00021917,2]
[342845501,1732179040619,-500.0,0.00021917,2]
[342845502,1732179040628,-303.32178823,0.00021917,2]
[342845503,1732179040637,-500.0,0.00021917,2]
[342845504,1732179040647,-500.0,0.00021917,2]
[342845505,1732179040656,-500.0,0.00021917,2]
[342845506,1732179040670,-500.0,0.00021917,2]
[342845507,1732179040679,-500.0,0.00021917,2]
[342845508,1732179040688,-500.0,0.00021917,2]
[342845509,1732179040698,-500.0,0.00021917,2]
[342845510,1732179040708,-500.0,0.00021917,2]
[342845511,1732179040723,-500.0,0.00021917,2]
[342845512,1732179040734,-500.0,0.00021917,2]
[342845513,1732179040744,-500.0,0.00021917,2]
[342845514,1732179040753,-500.0,0.00021917,2]
[342845515,1732179040763,-500.0,0.00021917,2]
[342845516,1732179040772,-1176.96,0.00021917,2]
[342845517,1732179040781,-500.0,0.00021917,2]
[342845518,1732179040790,-500.0,0.00021917,2]
[342845519,1732179040800,-500.0,0.00021917,2]
[342845520,1732179040809,-362.89546986,0.00021917,2]
[342845521,1732179040818,-500.0,0.00021917,2]
[342845522,1732179040828,-500.0,0.00021917,2]
[342845523,1732179040837,-500.0,0.00021917,2]
[342845524,1732179040847,-151.0,0.00022,7]
[342845525,1732179040856,-7355.57792178,0.0002205,7]
[342845526,1732179040865,-8568.98358501,0.00022064,2]
[342845527,1732179040875,-1000.0,0.00022091,2]
[342845528,1732179040884,-151.0,0.0002215,7]
[342845529,1732179040894,-151.0,0.00022191,7]
[342845530,1732179040903,-500.0,0.00022191,2]
[342845531,1732179040912,-200.0,0.00022191,2]
[342845532,1732179040922,-500.0,0.00022191,2]
[342845533,1732179040931,-500.0,0.00022191,2]
[342845534,1732179040940,-500.0,0.00022191,2]
[342845535,1732179040950,-556.24,0.00022191,2]
[342845536,1732179040959,-380.49150233,0.00022191,2]
[342845537,1732179040969,-500.0,0.00022191,2]
[342845538,1732179040977,-720.57,0.00022191,2]
[342845539,1732179040987,-556.75,0.00022191,2]
[342845540,1732179040996,-500.0,0.00022191,2]
[342845541,1732179041006,-500.0,0.00022191,2]
[342845542,1732179041015,-500.0,0.00022191,2]
[342845543,1732179041024,-500.0,0.00022191,2]
[342845544,1732179041034,-500.0,0.00022191,2]
[342845545,1732179041043,-500.0,0.00022191,2]
[342845546,1732179041052,-500.0,0.00022191,2]
[342845547,1732179041061,-500.0,0.00022191,2]
[342845548,1732179041070,-500.0,0.00022191,2]
[342845549,1732179041079,-1236.27,0.00022191,2]
[342845550,1732179041089,-500.0,0.00022191,2]
[342845551,1732179041098,-425.06,0.00022191,2]
[342845552,1732179041107,-539.19,0.00022191,2]
[342845553,1732179041116,-500.0,0.00022191,2]
[342845554,1732179041125,-500.0,0.00022191,2]
[342845555,1732179041134,-500.0,0.00022191,2]
[342845556,1732179041143,-311.24,0.00022191,2]
[342845557,1732179041152,-500.0,0.00022191,2]
[342845558,1732179041161,-500.0,0.00022191,2]
[342845559,1732179041170,-642.54,0.00022191,2]
[342845560,1732179041179,-519.5,0.00022191,2]
[342845561,1732179041189,-500.0,0.00022191,2]
[342845562,1732179041199,-500.0,0.00022191,2]
[342845563,1732179041208,-500.0,0.00022191,2]
[342845564,1732179041219,-500.0,0.00022191,2]
[342845565,1732179041229,-500.0,0.00022191,2]
[342845566,1732179041238,-500.0,0.00022191,2]
[342845567,1732179041246,-1808.4,0.00022191,2]
[342845568,1732179041255,-500.0,0.00022191,2]
[342845569,1732179041265,-500.0,0.00022191,2]
[342845570,1732179041274,-609.19,0.00022191,2]
[342845571,1732179041283,-500.0,0.00022191,2]
[342845572,1732179041292,-500.0,0.00022191,2]
[342845573,1732179041301,-2292.59,0.00022191,2]
[342845574,1732179041310,-649.93,0.00022191,2]
[342845575,1732179041319,-500.0,0.00022191,2]
[342845576,1732179041328,-1705.53,0.00022191,2]
[342845577,1732179041337,-500.0,0.00022191,2]
[342845578,1732179041346,-9446.81,0.00022191,2]
[342845579,1732179041356,-500.0,0.00022191,2]
[342845580,1732179041365,-500.0,0.00022191,2]
[342845581,1732179041374,-500.0,0.00022191,2]
[342845582,1732179041383,-4609.53,0.00022191,2]
[342845583,1732179041392,-500.0,0.00022191,2]
[342845584,1732179041401,-924.81,0.00022191,2]
[342845585,1732179041410,-1182.26,0.00022191,2]
[342845586,1732179041420,-2085.1,0.00022191,2]
[342845587,1732179041429,-500.0,0.00022191,2]
[342845588,1732179041439,-500.0,0.00022191,2]
[342845589,1732179041448,-500.0,0.00022191,2]
[342845590,1732179041457,-500.0,0.00022191,2]
[342845591,1732179041468,-500.0,0.00022191,2]
[342845592,1732179041477,-500.0,0.00022191,2]
[342845593,1732179041568,-500.0,0.00022191,2]
[342845594,1732179041578,-500.0,0.00022191,2]
[342845595,1732179041588,-500.0,0.00022191,2]
[342845596,1732179041598,-500.0,0.00022191,2]
[342845597,1732179041607,-211.21413592,0.00022191,2]
[342845598,1732179041616,-500.0,0.00022191,2]
[342845599,1732179041625,-500.0,0.00022191,2]
[342845600,1732179041635,-500.0,0.00022191,2]
[342845601,1732179041645,-1176.96,0.00022191,2]
[342845602,1732179041654,-313.72,0.00022191,2]
[342845603,1732179041664,-500.0,0.00022191,2]
[342845604,1732179041676,-500.0,0.00022191,2]
[342845605,1732179041686,-500.0,0.00022191,2]
[342845606,1732179041695,-500.0,0.00022191,2]
[342845607,1732179041705,-500.0,0.00022191,2]
[342845608,1732179041717,-3014.03580475,0.00022264,2]
[342845609,1732179041726,-8568.98358501,0.00022313,2]
[342845610,1732179041735,-178.751364,0.00022465,7]
[342845611,1732179041746,-500.0,0.00022465,2]
[342845612,1732179041755,-200.0,0.00022465,2]
[342845613,1732179041764,-500.0,0.00022465,2]
[342845614,1732179041774,-500.0,0.00022465,2]
[342845615,1732179041783,-505.37,0.00022465,2]
[342845616,1732179041792,-556.24,0.00022465,2]
[342845617,1732179041802,-500.0,0.00022465,2]
[342845618,1732179041811,-720.57,0.00022465,2]
[342845619,1732179041820,-556.75,0.00022465,2]
[342845620,1732179041830,-500.0,0.00022465,2]
[342845621,1732179041839,-500.0,0.00022465,2]
[342845622,1732179041849,-500.0,0.00022465,2]
[342845623,1732179041859,-500.0,0.00022465,2]
[342845624,1732179041868,-500.0,0.00022465,2]
[342845625,1732179041877,-500.0,0.00022465,2]
[342845626,1732179041886,-500.0,0.00022465,2]
[342845627,1732179041895,-500.0,0.00022465,2]
[342845628,1732179041904,-591.76,0.00022465,2]
[342845629,1732179041913,-1236.27,0.00022465,2]
[342845630,1732179041923,-500.0,0.00022465,2]
[342845631,1732179041932,-539.19,0.00022465,2]
[342845632,1732179041941,-500.0,0.00022465,2]
[342845633,1732179041950,-500.0,0.00022465,2]
[342845634,1732179041961,-500.0,0.00022465,2]
[342845635,1732179041970,-500.0,0.00022465,2]
[342845636,1732179041978,-500.0,0.00022465,2]
[342845637,1732179041989,-642.54,0.00022465,2]
[342845638,1732179041998,-519.5,0.00022465,2]
[342845639,1732179042007,-500.0,0.00022465,2]
[342845640,1732179042016,-500.0,0.00022465,2]
[342845641,1732179042026,-500.0,0.00022465,2]
[342845642,1732179042036,-500.0,0.00022465,2]
[342845643,1732179042046,-500.0,0.00022465,2]
[342845644,1732179042055,-500.0,0.00022465,2]
[342845645,1732179042064,-1808.4,0.00022465,2]
[342845646,1732179042074,-166.88,0.00022465,2]
[342845647,1732179042084,-500.0,0.00022465,2]
[342845648,1732179042093,-609.19,0.00022465,2]
[342845649,1732179042102,-500.0,0.00022465,2]
[342845650,1732179042111,-500.0,0.00022465,2]
[342845651,1732179042121,-2292.59,0.00022465,2]
[342845652,1732179042131,-649.93,0.00022465,2]
[342845653,1732179042143,-500.0,0.00022465,2]
[342845654,1732179042152,-1705.53,0.00022465,2]
[342845655,1732179042162,-500.0,0.00022465,2]
[342845656,1732179042171,-9446.81,0.00022465,2]
[342845657,1732179042180,-500.0,0.00022465,2]
[342845658,1732179042189,-500.0,0.00022465,2]
[342845659,1732179042198,-500.0,0.00022465,2]
[342845660,1732179042207,-4609.53,0.00022465,2]
[342845661,1732179042217,-500.0,0.00022465,2]
[342845662,1732179042226,-924.81,0.00022465,2]
[342845663,1732179042236,-1182.26,0.00022465,2]
[342845664,1732179042245,-2085.1,0.00022465,2]
[342845665,1732179042255,-500.0,0.00022465,2]
[342845666,1732179042264,-625.44,0.00022465,2]
[342845667,1732179042273,-500.0,0.00022465,2]
[342845668,1732179042283,-500.0,0.00022465,2]
[342845669,1732179042292,-500.0,0.00022465,2]
[342845670,1732179042301,-500.0,0.00022465,2]
[342845671,1732179042311,-500.0,0.00022465,2]
[342845672,1732179042320,-500.0,0.00022465,2]
[342845673,1732179042329,-500.0,0.00022465,2]
[342845674,1732179042339,-500.0,0.00022465,2]
[342845675,1732179042348,-500.0,0.00022465,2]
[342845676,1732179042358,-500.0,0.00022465,2]
[342845677,1732179042367,-500.0,0.00022465,2]
[342845678,1732179042376,-1176.96,0.00022465,2]
[342845680,1732179042386,-500.0,0.00022465,2]
[342845681,1732179042396,-500.0,0.00022465,2]
[342845682,1732179042405,-500.0,0.00022465,2]
[342845683,1732179042415,-500.0,0.00022465,2]
[342845684,1732179042425,-500.0,0.00022465,2]
[342845685,1732179042434,-500.0,0.00022607,2]
[342845687,1732179042443,-483.78,0.00022701,2]
[342845688,1732179042453,-205.99508598,0.00022701,2]
[342845690,1732179042462,-8568.98358501,0.00022705,2]
[342845692,1732179042471,-217.87812753,0.00022738,2]
[342845694,1732179042481,-151.0,0.00022739,7]
[342845695,1732179042490,-151.0,0.00022739,7]
[342845696,1732179042499,-500.0,0.00022739,2]
[342845697,1732179042509,-256.7961836,0.00022739,2]
[342845698,1732179042518,-500.0,0.00022739,2]
[342845699,1732179042528,-500.0,0.00022739,2]
[342845700,1732179042537,-556.24,0.00022739,2]
[342845702,1732179042547,-500.0,0.00022739,2]
[342845704,1732179042556,-720.57,0.00022739,2]
[342845707,1732179042565,-556.75,0.00022739,2]
[342845709,1732179042574,-500.0,0.00022739,2]
[342845710,1732179042584,-500.0,0.00022739,2]
[342845711,1732179042593,-500.0,0.00022739,2]
[342845712,1732179042602,-390.0,0.00022739,2]
[342845713,1732179042611,-150.79673866,0.00022739,2]
[342845714,1732179042620,-639.41705764,0.00022739,2]
[342845715,1732179042629,-248.96,0.00022739,2]
[342845716,1732179042639,-500.0,0.00022739,2]
[342845717,1732179042648,-1236.27,0.00022739,2]
[342845718,1732179042658,-500.0,0.00022739,2]
[342845719,1732179042669,-539.19,0.00022739,2]
[342845721,1732179042679,-500.0,0.00022739,2]
[342845723,1732179042688,-500.0,0.00022739,2]
[342845725,1732179042698,-500.0,0.00022739,2]
[342845727,1732179042708,-500.0,0.00022739,2]
[342845728,1732179042719,-500.0,0.00022739,2]
[342845730,1732179042728,-642.54,0.00022739,2]
[342845732,1732179042739,-519.5,0.00022739,2]
[342845734,1732179042748,-500.0,0.00022739,2]
[342845735,1732179042758,-500.0,0.00022739,2]
[342845736,1732179042767,-367.72503776,0.00022739,2]
[342845737,1732179042776,-563.84,0.00022739,2]
[342845738,1732179042786,-500.0,0.00022739,2]
[342845739,1732179042795,-500.0,0.00022739,2]
[342845741,1732179042805,-1808.4,0.00022739,2]
[342845742,1732179042814,-500.0,0.00022739,2]
[342845744,1732179042824,-609.19,0.00022739,2]